{"text_format":"1","workbook":"xlsx","n_sheets":5,"sheets":["1 Försättssida","2 Specifikation","3 Produktspecifikation","4 Avtalstecknande","Admin"],"not_rendered":{"charts":0,"images":0,"macros":1,"external_links":0,"defined_names":15,"comments":0,"pivot_tables":0},"unopened":[],"bounds":{"document_bytes":16777216,"sheet_cells":100000,"rows_first":2000,"rows_last":500,"rows_between":2000,"halvings":0,"cell_chars":16384,"cell_head_chars":4096},"cells_cut":0,"cells_raw":0,"read":"whole","date_system":"1900"}

{"sheet":"1 Försättssida","index":0,"n_rows":24,"n_cols":1,"rows_kept":24,"cut":false,"hidden":false,"merged":[]}
[]
[]
[]
[]
[]
[]
[]
[]
[]
[]
[]
["Avropsförfrågan - Förnyad konkurrensutsättning"]
["från Statens inköpscentrals ramavtal inom området "]
["Kontorspapper"]
[]
["23.3-10626-17"]
[]
[]
[]
[]
["Avropsblankett"]
[]
[]
["1.3"]

{"sheet":"2 Specifikation","index":1,"n_rows":91,"n_cols":23,"rows_kept":91,"cut":false,"hidden":false,"merged":[[87,10,88,17],[54,10,54,13],[40,1,40,8],[40,10,40,13],[41,1,41,8],[42,1,42,8],[43,1,43,8],[44,1,44,8],[61,10,61,13],[57,1,57,8],[28,1,28,4],[29,1,29,4],[25,5,25,8],[29,5,29,8],[35,1,35,2],[35,3,35,4],[32,1,32,4],[11,10,11,12],[12,10,12,12],[18,1,18,3],[18,4,18,6],[18,7,18,8],[17,7,17,8],[16,1,16,3],[15,4,15,6],[15,7,15,8],[11,13,11,17],[12,13,12,17],[14,10,14,12],[13,10,13,12],[18,10,18,12],[18,13,18,17],[17,10,17,12],[17,13,17,17],[16,13,16,17],[15,10,15,12],[13,1,13,3],[13,4,13,6],[13,7,13,8],[16,7,16,8],[16,4,16,6],[17,4,17,6],[25,1,25,4],[26,1,26,4],[21,10,21,17],[26,5,26,8],[14,7,14,8],[15,13,15,17],[4,10,4,17],[8,1,8,8],[7,1,7,8],[5,1,6,8],[9,10,9,15],[9,16,9,17],[5,10,6,17],[9,1,9,6],[9,7,9,8],[82,10,82,17],[10,7,10,8],[15,1,15,3],[61,1,61,8],[16,10,16,11],[13,13,13,17],[14,13,14,17],[10,10,10,15],[10,16,10,17],[81,1,81,7],[81,10,81,17],[10,1,10,6],[75,17,77,17],[47,1,47,8],[47,10,47,13],[56,1,56,8],[14,1,14,3],[34,3,34,4],[17,1,17,3],[14,4,14,6],[84,10,84,17],[83,10,83,17],[48,1,48,8],[49,1,49,8],[50,1,50,8],[75,1,77,16],[63,1,63,8],[84,1,86,8],[86,10,86,17],[69,1,72,17],[68,1,68,17],[54,1,54,8],[55,1,55,8],[28,5,28,8],[64,1,64,8],[65,1,65,8],[62,1,62,8],[51,1,51,8],[34,1,34,2],[58,1,58,8],[23,1,23,8],[23,10,23,17],[21,1,21,8],[31,1,31,4],[11,1,11,3],[11,4,11,6],[11,7,11,8],[12,1,12,3],[12,4,12,6],[12,7,12,8]]}
[null,null,null,null,null,null,null,null,null,null,null,null,null,null,null,null,null,{"$f":"\"Avrop nr: \"&E17","v":"Avrop nr: xxxx"}]
[]
[]
[null,"Avrop av kontorspapper",null,null,null,null,null,null,null,null,null,null,null,null,null,null,null,{"$f":"IF(LarmStatus,\"Minst ett av de obligatoriska kraven är inte ifyllda eller besvarde med Nej\",\"\")","v":"Minst ett av de obligatoriska kraven är inte ifyllda eller besvarde med Nej"},null,null,null,null,{"$f":"OR(W5:W103)","v":true}]
[]
[null,"Instruktion till avropande organisation: \nSpara ned blanketten på din dator.",null,null,null,null,null,null,null,null,"Instruktion till leverantör:\nBlåmarkerade rutor fylls i av leverantören.\nAlla fält ska fyllas i."]
[]
[]
[null,"Uppgifter om avropande organisation",null,null,null,null,null,null,null,null,"Uppgifter om Ramavtalsleverantören"]
[null,"Myndighet/Organisation (namn)",null,null,null,null,null,"Organisationsnummer",null,null,"Ramavtalsleverantörens namn",null,null,null,null,null,"Organisationsnummer"]
[null,null,null,null,null,null,null,null,null,null,"Välj leverantör",null,null,null,null,null,{"$f":"IF(ISNA(VLOOKUP(input3,TblLeverantörer,3,0)),\"\",VLOOKUP(input3,TblLeverantörer,3,0))","v":0},null,null,null,null,null,{"$f":"IF(input3<>\"\",FALSE,TRUE)","v":false}]
[null,"Postadress",null,null,"Postnummer",null,null,"Ort",null,null,"Kontaktperson",null,null,"Postadress"]
[null,null,null,null,null,null,null,null,null,null,{"$f":"IF(ISNA(VLOOKUP(input3,TblLeverantörer,10,0)),\"\",VLOOKUP(input3,TblLeverantörer,10,0))","v":0},null,null,{"$f":"IF(ISNA(VLOOKUP(input3,TblLeverantörer,4,0)),\"\",VLOOKUP(input3,TblLeverantörer,4,0))&CHAR(10)&IF(ISNA(VLOOKUP(input3,TblLeverantörer,5,0)),\"\",VLOOKUP(input3,TblLeverantörer,5,0))&\" \"&IF(ISNA(VLOOKUP(input3,TblLeverantörer,6,0)),\"\",VLOOKUP(input3,TblLeverantörer,6,0))","v":"\n "}]
[null,"Avdelning, enhet etc",null,null,"Fakturaref.",null,null,"Mottagare för E-faktura",null,null,"Kontaktuppgifter",null,null,"E-post"]
[null,null,null,null,null,null,null,null,null,null,{"$f":"IF(ISNA(VLOOKUP(input3,TblLeverantörer,11,0)),\"\",VLOOKUP(input3,TblLeverantörer,11,0))","v":0},null,null,{"$f":"IF(ISNA(VLOOKUP(input3,TblLeverantörer,12,0)),\"\",VLOOKUP(input3,TblLeverantörer,12,0))","v":0}]
[null,"Kontaktperson",null,null,"Ref/diarie -num för avropet",null,null,"Ev. kundnummer",null,null,"Ramavtalsnummer",null,null,"Avropssvar lämnas Ja/Nej"]
[null,null,null,null,"xxxx",null,null,null,null,null,{"$f":"IF(ISNA(VLOOKUP(input3,TblLeverantörer,2,0)),\"\",VLOOKUP(input3,TblLeverantörer,2,0))","v":0},null,{"$f":"IF(ISNA(VLOOKUP(input3,TblLeverantörer,3,0)),\"\",VLOOKUP(input3,TblLeverantörer,3,0))","v":0},null,null,null,null,null,null,null,null,null,{"$f":"IF(N17<>\"\",FALSE,TRUE)","v":true}]
[null,"Telefon",null,null,"Fax",null,null,"E-post",null,null,"Offertnummer el likn för detta avropssvar",null,null,"Om Nej, motivering",null,null,null,null,null,null,null,null,{"$f":"IF(K19<>\"\",FALSE,TRUE)","v":true}]
[null,null,null,null,null,null,null,"     ",null,null,null,null,null,null,null,null,null,null,null,null,null,null,{"$f":"IF($N$17=\"Nej\",IF($N$19<>\"\",FALSE,TRUE),IF($N$17=\"Ja\",FALSE,TRUE))","v":true}]
[]
[null,"Information om avropet t ex syfte och omfattning",null,null,null,null,null,null,null,null,"Uppgifter om underleverantör/återförsäljare/övrig information (om aktuellt)"]
[]
[null,"Förnyad kontroll av leverantörskrav (ESPD)",null,null,null,null,null,null,null,null,"Leverantörskrav (ESPD) - Ramavtalsleverantörens intygande"]
[null,"Av 15 kap. 1 samt 4 §§ LOU framgår att ramavtalsleverantören ska lämna en ny egenförsäkran samt att en ny kontroll av kvalificeringskrav och uteslutningsgrunder ska genomföras vid avrop genom förnyad konkurrensutsättning. Kammarkollegiet ansvarar för denna kontrollskyldighet genom att löpande genomföra leverantörsprövning under hela ramavtalsperioden. \nKontrollskyldigheten bör också hanteras så att ramavtalsleverantören i sitt avropssvar bekräftar att i ramavtalsupphandlingen lämnad egenförsäkran fortfarande är korrekt, samt att ingivna bevis fortfarande är aktuella. Avropande myndighet kan själv begära in ett eller flera bevis enligt punkten 2 till höger.",null,null,null,null,null,null,null,null,"Genom att lämna avropssvar, bekräftar ramavtalsleverantören följande:\n1.\tAtt i ramavtalsupphandlingen lämnad egenförsäkran fortfarande är korrekt.\n2.\tAtt i ramavtalsupphandlingen ingivna bevis, såsom Sanningsförsäkran avseende uteslutningsgrunder (gällande leverantören och ev. åberopade företag) fortfarande aktuella.\n3.\tAtt ramavtalsleverantören har säkerställt att ev. åberopade företag inte omfattas av någon uteslutningsgrund.\nMed \"åberopat företag\" avses specifikt en underleverantör som har åberopats i ramavtalsupphandlingen för att uppfylla krav på ekonomisk, teknisk och yrkesmässig kapacitet”."]
[null,null,"Obs att tidsfristen måste vara skälig med hänsyn till avropets karaktär."]
[null,"Sista datum för frågor",null,null,null,"Sista datum för svar på frågor"]
[]
[]
[null,"Sista dag för avropssvar",null,null,null,"Avropssvarets giltighetstid"]
[]
[]
[null,"Typ av kontrakt (val)"]
[]
[]
[null,"Leveransavtalets längd: t.o.m datum",null,"Förlängningsoption: antal månader/år",null,"Förlägn. mån/år"]
[]
[]
[]
[]
[null,"Leveranstid",null,null,null,null,null,null,null,null,"Leveranstid"]
[null,"Ange ev leveranstid/er för produkterna/tjänsterna",null,null,null,null,null,null,null,null,"Kravet accepteras?"]
[]
[]
[]
[]
[]
[null,"Leveransvillkor",null,null,null,null,null,null,null,null,"Leveransvillkor"]
[null,"Ange ev. specifika leveransvillkor alt. hänvisa till avtalsvillkor ",null,null,null,null,null,null,null,null,"Kravet accepteras?"]
[]
[]
[]
[]
[]
[null,"Leveransadress (om annan än ovan)",null,null,null,null,null,null,null,null,"Leveransadress"]
[null,"Ange ev leveransadress/er",null,null,null,null,null,null,null,null,"Kravet accepteras?"]
[]
[]
[]
[]
[]
[null,"Fakturaadress (om annan än ovan)",null,null,null,null,null,null,null,null,"Fakturaadress"]
[null,"Ange ev fakturaadress/erna",null,null,null,null,null,null,null,null,"Kravet accepteras?"]
[]
[]
[]
[]
[]
[null,"Övrig information"]
[null,"Ange övriga specifika förutsättningar, förhållanden eller önskemål som kan vara viktiga för leverantören och som inte framgår på annan plats i dokumentet."]
[]
[]
[]
[]
[]
[]
[null,"Leverantören har lämnat begärda prisuppgifter som gäller för offererade produkter/tjänster enligt ställda ska- och bör- krav och är införstådd med att samtliga lämnade uppgifter i avropssvaret är bindande.",null,null,null,null,null,null,null,null,null,null,null,null,null,null,null,null,null,null,null,null,{"$f":"IF(R76<>\"Ja\",TRUE,FALSE)","v":true}]
[]
[]
[]
[]
[null,null,null,null,null,null,null,null,null,null,"Underskrift"]
[null,"Ange om leverantören ska underteckna avropssvaret (Ja/Nej)",null,null,null,null,null,null,null,null,"Om avropande organisation så begär, scannas lämpligen undertecknad sida in och bifogas elektroniskt som en pdf-fil."]
[null,null,null,null,null,null,null,null,null,null,{"$f":"\"Leverantören intygar att avropssvaret är giltigt minst den tid som avropande organisation angett ovan. \"&CHAR(10)&\"(\"&TEXT(F30,\"ÅÅÅÅ-MM-DD\")&\")\"","v":"Leverantören intygar att avropssvaret är giltigt minst den tid som avropande organisation angett ovan. \n(1900-01-00)"}]
[null,"Låsning av avropsblanketten",null,null,null,null,null,null,null,null,"Ort, datum"]
[null,"Detta görs genom att klicka på knappen \"Lås avropsblanketten\" nedan samt ange ett lösenord. Om det visat sig att man glömt fylla i någon uppgift så kan det vara bra att kunna låsa upp blanketten. Klicka då på knappen \"Lås upp avropsblanketten\" nedan."]
[]
[null,null,null,null,null,null,null,null,null,null,"Namn, befattning (behörig företrädare för leverantören)"]
[]
[]
[]
[null,null,null,null,null,null,null,null,null,null,null,null,null,null,null,null,null,{"$f":"IF(LarmStatus,\"Minst ett av de obligatoriska kraven är inte ifyllda eller besvarde med Nej\",\"\")","v":"Minst ett av de obligatoriska kraven är inte ifyllda eller besvarde med Nej"}]

{"sheet":"3 Produktspecifikation","index":2,"n_rows":77,"n_cols":13,"rows_kept":77,"cut":false,"hidden":false,"merged":[]}
[null,null,null,null,null,null,null,null,null,null,null,null,{"$f":"\"Avrop nr: \"&'2 Specifikation'!E17","v":"Avrop nr: xxxx"}]
[null,"Produktspecifikation"]
[null,"Produkter/tjänster",null,null,null,null,null,null,"Leverantörens svar"]
[]
[null,"Önskad artikel","Krav på papperstyp","Önskat antal","Kartong/Pall","Antal ark/ enhet","Totalt antal ark",null,"Offererat artikelnummer","Pris per 1 000 ark","Rabatt i %","Offererat pris per 1 000 ark","Offererat totalpris"]
[null,"Avropare anger: t.ex. kopieringpapper, vitt, A4, ohålat, normalförpackning; A- eller B-kvalitet.\nAlternativt specificera och referera till bilaga.",null,null,null,null,null,null,null,"(anges i SEK exkl. moms)",null,null,"(Utvärdering sker på lägsta totalpris om flera produkter ingår i avropet)"]
[null,"Produkt 1","Inga speciella krav",null,"Välj enhet",null,{"$f":"D7*F7","v":0},null,null,null,null,{"$f":"J7*(1-K7)","v":0},{"$f":"L7*G7/1000","v":0}]
[null,"Produkt 2","Inga speciella krav",null,"Välj enhet",null,{"$f":"D8*F8","v":0},null,null,null,null,{"$f":"J8*(1-K8)","v":0},{"$f":"L8*G8/1000","v":0}]
[null,"Produkt 3","Inga speciella krav",null,"Välj enhet",null,{"$f":"D9*F9","v":0},null,null,null,null,{"$f":"J9*(1-K9)","v":0},0]
[null,"Produkt 4","Inga speciella krav",null,"Välj enhet",null,{"$f":"D10*F10","v":0},null,null,null,null,{"$f":"J10*(1-K10)","v":0},0]
[null,"Produkt 5","Inga speciella krav",null,"Välj enhet",null,{"$f":"D11*F11","v":0},null,null,null,null,{"$f":"J11*(1-K11)","v":0},0]
[null,"Produkt 6","Inga speciella krav",null,"Välj enhet",null,0,null,null,null,null,0,0]
[null,"Produkt 7","Inga speciella krav",null,"Välj enhet",null,{"$f":"D13*F13","v":0},null,null,null,null,{"$f":"J13*(1-K13)","v":0},0]
[null,"Produkt 8","Inga speciella krav",null,"Välj enhet",null,{"$f":"D14*F14","v":0},null,null,null,null,{"$f":"J14*(1-K14)","v":0},0]
[null,"Produkt 9","Inga speciella krav",null,"Välj enhet",null,0,null,null,null,null,0,0]
[null,"Produkt 10","Inga speciella krav",null,"Välj enhet",null,0,null,null,null,null,0,{"$f":"L16*G16/1000","v":0}]
[null,"Produkt 11","Inga speciella krav",null,"Välj enhet",null,{"$f":"D17*F17","v":0},null,null,null,null,{"$f":"J17*(1-K17)","v":0},{"$f":"L17*G17/1000","v":0}]
[null,"Produkt 12","Inga speciella krav",null,"Välj enhet",null,0,null,null,null,null,0,0]
[null,"Produkt 13","Inga speciella krav",null,"Välj enhet",null,0,null,null,null,null,0,0]
[null,"Produkt 14","Inga speciella krav",null,"Välj enhet",null,0,null,null,null,null,0,0]
[null,"Produkt 15","Inga speciella krav",null,"Välj enhet",null,0,null,null,null,null,0,0]
[null,"Produkt 16","Inga speciella krav",null,"Välj enhet",null,0,null,null,null,null,0,0]
[null,"Produkt 17","Inga speciella krav",null,"Välj enhet",null,0,null,null,null,null,0,0]
[null,"Produkt 18","Inga speciella krav",null,"Välj enhet",null,0,null,null,null,null,0,0]
[null,"Produkt 19","Inga speciella krav",null,"Välj enhet",null,0,null,null,null,null,0,0]
[null,"Produkt 20","Inga speciella krav",null,"Välj enhet",null,0,null,null,null,null,0,0]
[null,"Produkt 21","Inga speciella krav",null,"Välj enhet",null,0,null,null,null,null,0,0]
[null,"Produkt 22","Inga speciella krav",null,"Välj enhet",null,0,null,null,null,null,0,0]
[null,"Produkt 23","Inga speciella krav",null,"Välj enhet",null,0,null,null,null,null,0,0]
[null,"Produkt 24","Inga speciella krav",null,"Välj enhet",null,0,null,null,null,null,0,0]
[null,"Produkt 25","Inga speciella krav",null,"Välj enhet",null,0,null,null,null,null,0,0]
[null,"Produkt 26","Inga speciella krav",null,"Välj enhet",null,0,null,null,null,null,0,0]
[null,"Produkt 27","Inga speciella krav",null,"Välj enhet",null,0,null,null,null,null,0,0]
[null,"Produkt 28","Inga speciella krav",null,"Välj enhet",null,0,null,null,null,null,0,0]
[null,"Produkt 29","Inga speciella krav",null,"Välj enhet",null,0,null,null,null,null,0,0]
[null,"Produkt 30","Inga speciella krav",null,"Välj enhet",null,0,null,null,null,null,0,0]
[null,"Produkt 31","Inga speciella krav",null,"Välj enhet",null,{"$f":"D37*F37","v":0},null,null,null,null,{"$f":"J37*(1-K37)","v":0},{"$f":"L37*G37/1000","v":0}]
[null,"Produkt 32","Inga speciella krav",null,"Välj enhet",null,0,null,null,null,null,0,0]
[null,"Produkt 33","Inga speciella krav",null,"Välj enhet",null,0,null,null,null,null,0,0]
[null,"Produkt 34","Inga speciella krav",null,"Välj enhet",null,0,null,null,null,null,0,0]
[null,"Produkt 35","Inga speciella krav",null,"Välj enhet",null,0,null,null,null,null,0,0]
[null,"Produkt 36","Inga speciella krav",null,"Välj enhet",null,0,null,null,null,null,0,0]
[null,"Produkt 37","Inga speciella krav",null,"Välj enhet",null,0,null,null,null,null,0,0]
[null,"Produkt 38","Inga speciella krav",null,"Välj enhet",null,0,null,null,null,null,0,0]
[null,"Produkt 39","Inga speciella krav",null,"Välj enhet",null,0,null,null,null,null,0,0]
[null,"Produkt 40","Inga speciella krav",null,"Välj enhet",null,0,null,null,null,null,0,0]
[null,"Produkt 41","Inga speciella krav",null,"Välj enhet",null,0,null,null,null,null,0,0]
[null,"Produkt 42","Inga speciella krav",null,"Välj enhet",null,0,null,null,null,null,0,0]
[null,"Produkt 43","Inga speciella krav",null,"Välj enhet",null,0,null,null,null,null,0,0]
[null,"Produkt 44","Inga speciella krav",null,"Välj enhet",null,0,null,null,null,null,0,0]
[null,"Produkt 45","Inga speciella krav",null,"Välj enhet",null,0,null,null,null,null,0,0]
[null,"Produkt 46","Inga speciella krav",null,"Välj enhet",null,0,null,null,null,null,0,0]
[null,"Produkt 47","Inga speciella krav",null,"Välj enhet",null,0,null,null,null,null,0,0]
[null,"Produkt 48","Inga speciella krav",null,"Välj enhet",null,0,null,null,null,null,0,0]
[null,"Produkt 49","Inga speciella krav",null,"Välj enhet",null,0,null,null,null,null,0,0]
[null,"Produkt 50","Inga speciella krav",null,"Välj enhet",null,0,null,null,null,null,0,0]
[null,"Produkt 51","Inga speciella krav",null,"Välj enhet",null,0,null,null,null,null,0,0]
[null,"Produkt 52","Inga speciella krav",null,"Välj enhet",null,0,null,null,null,null,0,0]
[null,"Produkt 53","Inga speciella krav",null,"Välj enhet",null,0,null,null,null,null,0,0]
[null,"Produkt 54","Inga speciella krav",null,"Välj enhet",null,0,null,null,null,null,0,0]
[null,"Produkt 55","Inga speciella krav",null,"Välj enhet",null,0,null,null,null,null,0,0]
[null,"Produkt 56","Inga speciella krav",null,"Välj enhet",null,0,null,null,null,null,0,0]
[null,"Produkt 57","Inga speciella krav",null,"Välj enhet",null,0,null,null,null,null,0,0]
[null,"Produkt 58","Inga speciella krav",null,"Välj enhet",null,0,null,null,null,null,0,0]
[null,"Produkt 59","Inga speciella krav",null,"Välj enhet",null,0,null,null,null,null,0,0]
[null,"Produkt 60","Inga speciella krav",null,"Välj enhet",null,0,null,null,null,null,0,0]
[null,"Produkt 61","Inga speciella krav",null,"Välj enhet",null,0,null,null,null,null,0,0]
[null,"Produkt 62","Inga speciella krav",null,"Välj enhet",null,0,null,null,null,null,0,0]
[null,"Produkt 63","Inga speciella krav",null,"Välj enhet",null,0,null,null,null,null,0,0]
[null,"Produkt 64","Inga speciella krav",null,"Välj enhet",null,0,null,null,null,null,0,0]
[null,"Produkt 65","Inga speciella krav",null,"Välj enhet",null,0,null,null,null,null,0,0]
[null,"Produkt 66","Inga speciella krav",null,"Välj enhet",null,0,null,null,null,null,0,0]
[null,"Produkt 67","Inga speciella krav",null,"Välj enhet",null,0,null,null,null,null,0,0]
[null,"Produkt 68","Inga speciella krav",null,"Välj enhet",null,0,null,null,null,null,0,0]
[null,"Produkt 69","Inga speciella krav",null,"Välj enhet",null,0,null,null,null,null,0,0]
[null,"Produkt 70","Inga speciella krav",null,"Välj enhet",null,0,null,null,null,null,0,0]
[null,null,null,null,null,null,null,null,null,null,null,"Totalt pris (utvärderas): ",{"$f":"SUM(M7:M76)","v":0}]

{"sheet":"4 Avtalstecknande","index":3,"n_rows":33,"n_cols":4,"rows_kept":33,"cut":false,"hidden":false,"merged":[[5,1,5,3],[34,1,34,3],[35,1,35,3],[36,1,36,3],[7,1,7,3],[8,1,8,3],[9,1,9,3],[10,1,10,3],[11,1,11,3],[37,1,37,3],[18,1,18,3],[33,1,33,3],[13,1,13,3],[14,1,15,3]]}
[null,null,null,{"$f":"\"Avrop nr: \"&'2 Specifikation'!E17","v":"Avrop nr: xxxx"}]
[]
[]
[]
[null,"Kontrakt"]
[null,{"$f":"\"Detta kontrakt reglerar avrop från ramavtalsområde \"&'1 Försättssida'!A14&\", \"&'2 Specifikation'!K17","v":"Detta kontrakt reglerar avrop från ramavtalsområde Kontorspapper, 0"}]
[null,"Kontraktets omfattning"]
[null,"Leveransens omfattning och villkor framgår av Kontraktet med tillhörande bilagor samt Ramavtalet. Om handlingarna innehåller motstridiga uppgifter ska handlingarna gälla i nedan nämnd ordning om inte omständigheterna uppenbarligen föranleder annat."]
[null,"1. Ramavtalets huvudtext"]
[null,"2. Ramavtalets bilaga Allmänna villkor"]
[null,"3. Detta Kontrakt med tillhörande bilagor (så som uppdragsbeskrivning, prisbilaga, kundens avropsförfrågan, leverantörens avropssvar, kontraktsperiod, eventuella optioner etc.)"]
[null,"Innehåller leverantörens avropssvar uppgifter som inte efterfrågats i avropsblanketten är dessa uppgifter giltiga endast om en skriftlig överenskommelse träffas särskilt angående detta. Hänvisning till leverantörens egna allmänna villkor eller motsvarande är endast giltiga om en särskild överenskommelse avseende detta tecknas."]
[]
[null,"Specifika Kontraktsvillkor (alternativt enl separat bilaga)"]
[]
[]
[]
[null,"Underskrift"]
[null,"Underskriften avser ett kontraktstecknande. Efter undertecknande av bägge parter utgör denna blankett tillsammans med ramavtalets generella och specifika avtalsvillkor enligt ovan ett kontrakt mellan parterna.\n\nDetta kontrakt har upprättats i två exemplar varav parterna tagit var sitt."]
[]
[null,"Avropande organisation",null,"Leverantör"]
[null,{"$f":"'2 Specifikation'!B11","v":0},null,{"$f":"'2 Specifikation'!K11","v":"Välj leverantör"}]
[null,"Org.nr.",null,"Org.nr."]
[null,{"$f":"'2 Specifikation'!H11","v":0},null,{"$f":"'2 Specifikation'!Q11","v":0}]
[]
[null,"Ort, datum",null,"Ort, datum"]
[]
[]
[null,"Namn, befattning \n(behörig företrädare för avropande organisation)",null,"Namn, befattning \n(behörig företrädare för leverantören)"]
[]
[]
[]
[null,"Eventuella bilagor till kontraktet"]

{"sheet":"Admin","index":4,"n_rows":22,"n_cols":24,"rows_kept":22,"cut":false,"hidden":true,"merged":[]}
[null,"UKey","förvaltning21",null,null,"Tilldelningskriterier",null,null,"Juridiskt Namn","Förvaltningens avtalsnummer ","Sista siffror i avtalsnummer","Organisations-nummer","Adress","Postnummer","Postadress","Telefon Växel","Telefon kundtjänst","Hemsida","Kontaktperson ","Telefon","E-post kontaktperson","Befattning Kontaktperson","Fax","E-post Gruppbrevlåda"]
[null,"pkey","Kammarkollegiet",null,null,{"$f":"'2 Specifikation'!#REF!","v":{"$error":"#REF!"}},null,null,"Välj leverantör"]
[null,"Wkey","Kammarkollegiet","RGB",null,{"$f":"'2 Specifikation'!#REF!","v":{"$error":"#REF!"}},null,null,"Procurator Sverige AB","23.3-10626-17","001","556057-6554","Box 90113","120 21","Stockholm",null,null,"http://www.papyrus.com","Fredrik Stenvall","010-5172854, fredrik.stenvall@procurator.com","order.public@procurator.com"]
[null,"YColor"," ","255, 255, 153",null,{"$f":"'2 Specifikation'!#REF!","v":{"$error":"#REF!"}},null,null,"Antalis AB","23.3-10626-17","002","556076-2022","Box 553","135 25","Haninge","010-7077000",null,"http://www.antalis.se","Lennart Carlsson","070-5761282, lennart.carlsson@antalis.com","order@antalis.com"]
[null,null,null,"204, 255, 255",null,null,null,null,"Office Depot Sverige AB","23.3-10626-17","004","556024-9558","Telegrafgatan 4, Box 3132","169 03","Solna","010-4585000",null,"http://www.officedepot.se","Mats Wahlberg","070-2663050, mats.wahlberg@officedepot.eu","se-kundcenter@officedepot.eu"]
[null,null,null,"150, 150, 150"]
[null,null,null,"204, 255, 204"]
[null,null,null,"250, 191, 143",null,"TblValEnhet"]
[null,null,null,null,null,"Välj enhet"]
[null,null,null,null,null,"Kartong"]
[null,null,null,null,null,"Pall"]
[]
[]
[]
[null,null,null,null,null,"TblValPappertyp"]
[null,null,null,null,null,"Inga speciella krav"]
[null,null,null,null,null,"Kontors- och kopieringspapper"]
[null,null,null,null,null,"Papper för fyrfärgskopiering motsvarande 4CC"]
[null,null,null,null,null,"Färgat papper"]
[null,null,null,null,null,"Arkivbeständigt papper"]
[null,null,null,null,null,"Återvunnet papper (100% recycled)"]
[null,null,null,null,null,"Åldersbeständigt papper"]